bitfinex-derivatives/quotes_BTCF0:USTF0_20251011
["timestamp","ask_amount","ask_price","bid_price","bid_amount"]
[1760211104562,0.3628,111390.0,111380.0,0.65615]
[1760211105567,0.3628,111390.0,111380.0,0.25615]
[1760211105764,0.4524756,111390.0,111380.0,0.23384]
[1760211106560,0.96336846,111390.0,111380.0,0.23384]
[1760211106866,1.36336846,111390.0,111380.0,0.23384]
[1760211107266,1.38563887,111390.0,111380.0,0.03384]
[1760211107568,0.0896836,111380.0,111370.0,0.01384]
[1760211107871,0.96137646,111380.0,111370.0,0.13384]
[1760211108961,0.3608,111380.0,111370.0,0.15615]
[1760211109162,0.3618,111380.0,111370.0,0.15615]
[1760211109768,0.3618,111380.0,111370.0,0.2458417]
[1760211109967,0.3628,111380.0,111370.0,1.13442456]
[1760211110268,0.002,111380.0,111370.0,1.49522456]
[1760211110667,0.001,111380.0,111370.0,1.49522456]
[1760211110968,0.3608,111390.0,111380.0,0.1028336]
[1760211111168,0.3608,111390.0,111380.0,0.23315]
[1760211111470,0.3608,111390.0,111380.0,0.63315]
[1760211111669,0.3608,111390.0,111380.0,0.7228336]
[1760211111870,0.4504756,111390.0,111380.0,0.23315]
[1760211112171,1.36136846,111390.0,111380.0,0.23315]
[1760211113169,1.38387446,111390.0,111380.0,0.23315]
[1760211113969,1.38387446,111390.0,111380.0,0.13315]
[1760211114165,1.38487446,111390.0,111380.0,0.13315]
[1760211114564,1.38587446,111390.0,111380.0,0.13315]
[1760211115966,0.98587446,111390.0,111380.0,0.13315]
[1760211116362,0.4524756,111390.0,111380.0,0.13315]
[1760211116870,0.96336846,111390.0,111380.0,0.13315]
[1760211117168,0.3628,111390.0,111380.0,0.53315]
[1760211118165,0.3618,111390.0,111380.0,0.53315]
[1760211118365,0.3628,111390.0,111380.0,0.53315]
[1760211118566,0.4524756,111390.0,111380.0,0.53315]
[1760211118774,0.4524756,111390.0,111380.0,0.13315]
[1760211118974,0.96336846,111390.0,111380.0,0.13315]
[1760211119275,0.4524756,111390.0,111380.0,0.13315]
[1760211119771,0.4514756,111390.0,111380.0,0.13315]
[1760211120067,0.4524756,111390.0,111380.0,0.13315]
[1760211120469,0.3628,111390.0,111380.0,0.53315]
[1760211121272,0.3628,111390.0,111380.0,0.55546]
[1760211121474,0.96336846,111390.0,111380.0,0.13315]
[1760211122775,0.3618,111390.0,111380.0,0.55546]
[1760211123372,0.3628,111390.0,111380.0,0.55546]
[1760211124171,0.4514756,111390.0,111380.0,0.55546]
[1760211124373,0.4524756,111390.0,111380.0,0.55546]
[1760211124568,0.4514756,111390.0,111380.0,0.55546]
[1760211127880,0.4514756,111390.0,111380.0,0.13315]
[1760211128072,0.96236846,111390.0,111380.0,0.13315]
[1760211128779,1.36236846,111390.0,111380.0,0.13315]
[1760211129075,1.38500432,111390.0,111380.0,0.13315]
[1760211129277,0.87411146,111390.0,111380.0,0.13315]
[1760211129474,1.38500432,111390.0,111380.0,0.13315]
[1760211130179,1.38600432,111390.0,111380.0,0.13315]
[1760211130384,1.38600432,111390.0,111370.0,0.01384]
[1760211130385,0.0896836,111380.0,111370.0,0.01384]
[1760211130681,0.98401232,111380.0,111370.0,0.13384]
[1760211130882,0.0896917,111370.0,111360.0,0.01384]
[1760211131177,0.98402042,111370.0,111360.0,0.07384]
[1760211131377,0.87312756,111370.0,111360.0,0.07384]
[1760211131573,0.47312756,111370.0,111360.0,0.27384]
[1760211131778,0.98402042,111370.0,111360.0,0.27384]
[1760211132179,1.38402042,111370.0,111360.0,0.01384]
[1760211132381,1.38402042,111370.0,111360.0,0.06]
[1760211132677,1.38402042,111370.0,111330.0,0.01315]
[1760211132678,0.0897158,111340.0,111330.0,0.01315]
[1760211132985,1.34481877,111340.0,111330.0,0.18315]
[1760211133480,1.74479709,111340.0,111330.0,0.18315]
[1760211133679,0.0897239,111330.0,111320.0,0.01306]
[1760211133879,0.98300519,111330.0,111320.0,0.02306]
[1760211134079,0.98300519,111330.0,111320.0,0.27306]
[1760211134280,0.96041676,111330.0,111320.0,0.27306]
[1760211135182,0.96041676,111330.0,111320.0,0.05306]
[1760211135483,0.96041676,111330.0,111320.0,0.22306]
[1760211140881,0.089732,111320.0,111310.0,0.01306]
[1760211141076,0.96142486,111320.0,111310.0,0.20306]
[1760211142884,0.450532,111320.0,111310.0,0.22497]
[1760211143081,0.3608,111320.0,111310.0,0.22497]
[1760211143382,0.3608,111320.0,111310.0,0.62497]
[1760211144980,0.3608,111320.0,111310.0,0.71471]
[1760211146086,0.3608,111330.0,111320.0,0.03497]
[1760211146280,0.3608,111330.0,111320.0,0.27497]
[1760211147087,0.4505239,111330.0,111320.0,0.27497]
[1760211147688,0.3608,111330.0,111320.0,0.27497]
[1760211148385,0.4505239,111330.0,111320.0,0.27497]
[1760211148591,0.96141676,111330.0,111320.0,0.25306]
[1760211149992,1.36241676,111330.0,111320.0,0.25306]
[1760211150390,1.36341676,111330.0,111320.0,0.25306]
[1760211150687,0.3628,111330.0,111320.0,0.27497]
[1760211150892,0.3628,111330.0,111320.0,0.67497]
[1760211151081,0.3628,111330.0,111320.0,0.764702]
[1760211151484,0.3628,111330.0,111320.0,0.67497]
[1760211151883,0.3618,111330.0,111320.0,0.764702]
[1760211152488,0.3608,111330.0,111320.0,0.764702]
[1760211154092,0.3608,111330.0,111320.0,0.67497]
[1760211156197,0.4505239,111330.0,111320.0,0.67497]
[1760211156399,1.02199823,111330.0,111320.0,0.25306]
[1760211157595,1.42199823,111330.0,111320.0,0.25306]
[1760211157800,1.44472336,111330.0,111320.0,0.25306]
[1760211159396,1.51909625,111330.0,111320.0,0.25306]
[1760211160098,1.52009625,111330.0,111320.0,0.25306]
[1760211160691,1.52009625,111330.0,111320.0,0.02306]
[1760211160890,1.52009625,111330.0,111320.0,0.27306]
[1760211161504,1.52009625,111330.0,111320.0,0.02306]
[1760211161904,0.089732,111320.0,111310.0,0.01306]
[1760211162204,1.04473146,111320.0,111310.0,0.24306]
[1760211162800,0.38352513,111320.0,111310.0,0.24306]
[1760211162997,1.04473146,111320.0,111310.0,0.24306]
[1760211163806,0.47325713,111320.0,111310.0,0.24306]
[1760211164099,1.04473146,111320.0,111310.0,0.24306]
[1760211167997,1.44473146,111320.0,111310.0,0.24306]
[1760211168204,0.08974,111310.0,111300.0,0.01306]
[1760211168404,1.04473946,111310.0,111300.0,0.24306]
[1760211171708,0.95499946,111310.0,111300.0,0.26592]
[1760211172008,0.3608,111310.0,111300.0,0.7556681]
[1760211172806,0.3608,111330.0,111320.0,0.03653]
[1760211173107,0.3608,111330.0,111320.0,0.356262]
[1760211173308,0.3608,111330.0,111320.0,0.756262]
[1760211174007,0.3618,111330.0,111320.0,0.756262]
[1760211174208,0.3628,111330.0,111320.0,0.756262]
[1760211178012,0.002,111330.0,111320.0,1.32773633]
[1760211178806,0.002,111330.0,111320.0,0.756262]
[1760211179001,0.3628,111330.0,111320.0,0.756262]
[1760211179906,0.3628,111330.0,111320.0,0.356262]
[1760211180102,1.02399823,111330.0,111320.0,0.26653]
[1760211180303,0.4525239,111330.0,111320.0,0.26653]
[1760211180610,1.02299823,111330.0,111320.0,0.26653]
[1760211180810,1.02199823,111330.0,111320.0,0.26653]
[1760211181109,0.3608,111330.0,111320.0,0.756262]
[1760211182311,0.4505239,111330.0,111320.0,0.26653]
[1760211182510,1.02199823,111330.0,111320.0,0.26653]
[1760211183108,1.02199823,111330.0,111320.0,0.24367]
[1760211183309,1.42199823,111330.0,111320.0,0.24367]
[1760211183912,1.4446303,111330.0,111320.0,0.23]
[1760211184113,0.089732,111320.0,111310.0,0.01367]
[1760211184312,1.42200633,111320.0,111310.0,0.17367]
[1760211184514,1.44463724,111320.0,111310.0,0.17367]
[1760211184921,0.0897481,111300.0,111290.0,0.06306]
[1760211185122,1.97691887,111300.0,111290.0,0.12306]
[1760211185415,0.0897561,111290.0,111280.0,0.01367]
[1760211185718,1.04465073,111290.0,111280.0,0.24367]
[1760211186018,1.44465073,111290.0,111280.0,0.24367]
[1760211187017,1.45334051,111290.0,111280.0,0.24367]
[1760211188319,1.45334051,111290.0,111270.0,0.01377957]
[1760211188320,0.0897642,111280.0,111270.0,0.01377957]
[1760211188517,1.02203853,111280.0,111270.0,0.25377957]
[1760211188719,0.0897884,111250.0,111240.0,0.01367]
[1760211188917,1.38286273,111250.0,111240.0,0.27367]
[1760211189719,1.38295919,111250.0,111240.0,0.27367]
[1760211190224,2.35443352,111250.0,111240.0,0.27367]
[1760211191014,0.0897965,111240.0,111230.0,0.01367]
[1760211191211,1.02207083,111240.0,111230.0,0.26367]
[1760211191411,1.42207083,111240.0,111230.0,0.26367]
[1760211191821,1.33227433,111240.0,111230.0,0.26367]
[1760211192321,1.42207083,111240.0,111230.0,0.26467]
[1760211192717,1.33227433,111240.0,111230.0,0.26467]
[1760211192910,0.93227433,111240.0,111230.0,0.28753]
[1760211193111,0.93227433,111240.0,111230.0,0.28853]
[1760211193521,0.3608,111240.0,111230.0,0.7783345]
[1760211193922,0.36089646,111250.0,111240.0,0.03431]
[1760211194112,0.36089646,111250.0,111240.0,0.3841065]
[1760211194517,0.36089646,111250.0,111240.0,1.35558083]
[1760211194819,0.36089646,111250.0,111240.0,0.7841065]
[1760211195016,9.646e-05,111250.0,111240.0,0.7841065]
[1760211195216,0.36089646,111250.0,111240.0,0.69431]
[1760211195419,1.02215919,111250.0,111240.0,0.29431]
[1760211196116,0.36089646,111250.0,111240.0,0.69431]
[1760211196516,0.36089646,111250.0,111240.0,0.7841065]
[1760211196713,9.646e-05,111250.0,111240.0,0.7841065]
[1760211196918,9.646e-05,111250.0,111240.0,1.35558083]
[1760211197120,9.646e-05,111250.0,111240.0,1.71638083]
[1760211197321,0.3608,111260.0,111240.0,1.71638083]
[1760211197522,0.4505803,111260.0,111250.0,0.03431]
[1760211197821,1.02205463,111260.0,111250.0,0.29431]
[1760211198313,1.42205463,111260.0,111250.0,0.27267]
[1760211200023,0.93227433,111260.0,111250.0,0.29431]
[1760211200221,1.02205463,111260.0,111250.0,0.27267]
[1760211200620,0.4505803,111260.0,111250.0,0.27267]
[1760211200820,1.02205463,111260.0,111250.0,0.27267]
[1760211201623,1.42205463,111260.0,111250.0,0.27267]
[1760211202425,1.02205463,111260.0,111250.0,0.27267]
[1760211202723,1.02205463,111260.0,111250.0,0.29431]
[1760211202923,1.02205463,111260.0,111250.0,0.27267]
[1760211203319,1.42205463,111260.0,111250.0,0.27267]
[1760211204220,1.02205463,111260.0,111250.0,0.27267]
[1760211204418,1.02205463,111260.0,111250.0,0.29431]
[1760211204621,1.02205463,111260.0,111250.0,0.27267]
[1760211205121,0.3608,111260.0,111250.0,0.29431]
[1760211205318,0.3608,111260.0,111250.0,1.35557273]
[1760211205513,0.3608,111270.0,111260.0,0.0897767]
[1760211205716,0.3608,111270.0,111260.0,0.67431]
[1760211205915,0.3608,111270.0,111260.0,0.27431]
[1760211206125,1.02204663,111270.0,111260.0,0.25267]
[1760211206417,1.42204663,111270.0,111260.0,0.25267]
[1760211206720,1.42204663,111270.0,111260.0,0.27431]
[1760211206721,0.93227433,111270.0,111260.0,0.27431]
[1760211206916,1.02204663,111270.0,111260.0,0.27431]
[1760211207222,1.02204663,111270.0,111260.0,0.25267]
[1760211208419,1.42304663,111270.0,111260.0,0.03]
[1760211208624,0.0897803,111260.0,111250.0,0.01267]
[1760211208824,1.02205463,111260.0,111250.0,0.27267]
[1760211210415,0.4505803,111260.0,111250.0,0.27267]
[1760211210625,1.02205463,111260.0,111250.0,0.27267]
[1760211212329,1.04492803,111260.0,111250.0,0.27267]
[1760211213230,1.04592803,111260.0,111250.0,0.27267]
[1760211213423,0.98623128,111260.0,111250.0,0.27267]
[1760211214121,0.98723128,111260.0,111250.0,0.27267]
[1760211214324,1.38723128,111260.0,111250.0,0.20267]
[1760211214931,1.38723128,111260.0,111250.0,0.06267]
[1760211215329,1.38723128,111260.0,111250.0,0.28267]
[1760211215530,1.38723128,111260.0,111250.0,0.01267]
[1760211215729,1.38723128,111260.0,111230.0,0.01267]
[1760211215730,0.0897965,111240.0,111230.0,0.01267]
[1760211215931,1.34604748,111240.0,111230.0,0.27267]
[1760211216334,1.34604748,111240.0,111230.0,0.08267]
[1760211217434,1.34604748,111240.0,111230.0,0.27267]
[1760211217838,0.8342699,111240.0,111230.0,0.27267]
[1760211218027,1.34604748,111240.0,111230.0,0.27267]
[1760211219638,1.34704748,111240.0,111230.0,0.27267]
[1760211220141,1.34704748,111240.0,111230.0,0.01267]
[1760211220439,1.74804748,111240.0,111230.0,0.16]
[1760211220639,0.0898045,111230.0,111220.0,0.01267]
[1760211220835,0.98525548,111230.0,111220.0,0.27267]
[1760211221235,0.98525548,111230.0,111220.0,0.26]
[1760211221841,0.98625548,111230.0,111220.0,0.27262]
[1760211222139,0.98725548,111230.0,111220.0,0.27262]
[1760211222340,1.05987531,111230.0,111220.0,0.27262]
[1760211223342,1.06831173,111230.0,111220.0,0.27262]
[1760211225144,1.46831173,111230.0,111200.0,0.01267]
[1760211225350,1.32319828,111210.0,111200.0,0.21267]
[1760211225554,1.34607168,111210.0,111200.0,0.21267]
[1760211226041,1.34607168,111210.0,111200.0,0.23479]
[1760211226042,1.25625098,111210.0,111200.0,0.23479]
[1760211226239,0.8342941,111210.0,111200.0,0.23479]
[1760211226445,1.34607168,111210.0,111200.0,0.23479]
[1760211226650,1.34607168,111210.0,111200.0,0.21267]
[1760211227144,1.34607168,111210.0,111200.0,0.23479]
[1760211227751,0.7444734,111210.0,111200.0,0.63479]
[1760211227950,0.7216,111210.0,111200.0,0.63479]
[1760211228148,1.23337758,111210.0,111200.0,0.23479]
[1760211228345,1.34605623,111210.0,111200.0,0.21267]
[1760211228544,1.74605623,111210.0,111200.0,0.21267]
[1760211228852,1.74605623,111210.0,111200.0,0.2]
[1760211229151,1.74605623,111210.0,111200.0,0.21282]
[1760211229852,1.34605623,111210.0,111200.0,0.23494]
[1760211230441,1.25623553,111210.0,111200.0,0.23494]
[1760211230641,0.74445795,111210.0,111200.0,0.63494]
[1760211230948,0.74545795,111210.0,111200.0,0.63494]
[1760211231143,0.83527865,111210.0,111200.0,0.63494]
[1760211231344,1.34705623,111210.0,111200.0,0.21282]
[1760211231652,1.34805623,111210.0,111200.0,0.21282]
[1760211232047,0.74645795,111210.0,111200.0,0.63494]
[1760211232245,0.7236,111210.0,111200.0,0.63494]
[1760211232451,0.7236,111210.0,111200.0,0.7247687]
[1760211233152,0.7236,111210.0,111200.0,0.63494]
[1760211233348,0.7236,111210.0,111200.0,0.61282]
[1760211233653,1.32519818,111210.0,111200.0,0.21282]
[1760211234154,1.34803975,111210.0,111200.0,0.21282]
[1760211234953,1.25821915,111210.0,111200.0,0.23494]
[1760211235252,1.23537758,111210.0,111200.0,0.63494]
[1760211235658,0.7236,111210.0,111200.0,0.7247687]
[1760211235956,0.7236,111210.0,111200.0,0.63494]
[1760211235957,0.3628,111210.0,111200.0,0.63494]
[1760211236448,0.3628,111210.0,111200.0,0.7247687]
[1760211237355,0.002,111210.0,111200.0,0.7247687]
[1760211237857,0.3628,111210.0,111200.0,0.63494]
[1760211238055,0.3628,111210.0,111200.0,0.23494]
[1760211239057,0.3628,111210.0,111200.0,0.3247688]
[1760211239248,0.002,111210.0,111200.0,0.7247688]
[1760211240850,0.0918207,111210.0,111200.0,0.23494]
[1760211241049,0.4526207,111210.0,111200.0,0.23494]
[1760211241854,0.96439828,111210.0,111200.0,0.21282]
[1760211243657,1.38717892,111210.0,111200.0,0.21282]
[1760211244158,1.38717892,111210.0,111200.0,0.2]
[1760211244355,1.38717892,111210.0,111200.0,0.21282]
[1760211244653,1.38717892,111210.0,111200.0,0.2]
[1760211245158,0.87540134,111210.0,111200.0,0.23494]
[1760211245359,1.38717892,111210.0,111200.0,0.21282]
[1760211245761,1.38717892,111210.0,111200.0,0.2]
[1760211246058,0.0898288,111200.0,111190.0,0.01273371]
[1760211246359,0.98518702,111200.0,111190.0,0.15273371]
[1760211246658,1.38518702,111200.0,111190.0,0.15273371]
[1760211247557,0.87340944,111200.0,111190.0,0.17485371]
[1760211247755,1.38518702,111200.0,111190.0,0.15273371]
[1760211250662,1.38518702,111200.0,111190.0,6.371e-05]
[1760211252056,1.38518702,111200.0,111190.0,0.01381371]
[1760211252252,0.87340944,111200.0,111190.0,0.27381371]
[1760211252459,1.38518702,111200.0,111190.0,0.27381371]
[1760211252656,1.38618702,111200.0,111190.0,0.27381371]
[1760211253365,1.38618702,111200.0,111190.0,0.08006371]
[1760211253560,0.0898449,111180.0,111170.0,0.01282]
[1760211253759,1.32322248,111180.0,111170.0,0.25282]
[1760211254255,1.33183227,111180.0,111170.0,0.25282]
[1760211254462,1.33190909,111180.0,111170.0,0.25282]
[1760211254764,1.75467182,111180.0,111170.0,0.25375]
[1760211255065,1.75567182,111180.0,111170.0,0.25375]
[1760211255258,1.23628445,111180.0,111170.0,0.25375]
[1760211255458,1.74806203,111180.0,111170.0,0.25375]
[1760211255661,0.83628445,111180.0,111170.0,0.25375]
[1760211255860,0.90898717,111180.0,111170.0,0.25375]
[1760211256156,0.74643955,111180.0,111170.0,0.27597]
[1760211256355,1.2354544,111180.0,111170.0,0.27597]
[1760211256558,1.3252993,111180.0,111170.0,0.25375]
[1760211256959,1.34705197,111180.0,111170.0,0.25375]
[1760211257260,1.34805197,111180.0,111170.0,0.25375]
[1760211257562,1.74805197,111180.0,111170.0,0.25375]
[1760211257765,1.74705197,111180.0,111170.0,0.25375]
[1760211258864,1.25820707,111180.0,111170.0,0.27597]
[1760211259064,1.34804078,111180.0,111170.0,0.25375]
[1760211259962,1.41880303,111180.0,111170.0,0.25375]
[1760211260159,1.25619588,111180.0,111170.0,0.27597]
[1760211260366,1.2344544,111180.0,111170.0,0.27597]
[1760211261054,1.2354544,111180.0,111170.0,0.27597]
[1760211261459,1.2344544,111180.0,111170.0,0.27597]
[1760211261863,1.3232993,111180.0,111170.0,0.27597]
[1760211262159,1.3232993,111180.0,111170.0,0.25375]
[1760211262367,1.34602843,111180.0,111170.0,0.25375]
[1760211262560,1.34602843,111180.0,111170.0,0.14375]
[1760211263364,1.41707089,111180.0,111170.0,0.14375]
[1760211263867,1.41807089,111180.0,111170.0,0.14375]
[1760211264164,0.83525085,111180.0,111170.0,0.56597]
[1760211264359,0.81252172,111180.0,111170.0,0.56597]
[1760211264563,1.2344544,111180.0,111170.0,0.56597]
[1760211264757,0.72267682,111180.0,111170.0,0.655823]
[1760211265361,0.72267682,111180.0,111170.0,0.56597]
[1760211266056,0.72267682,111180.0,111170.0,0.655823]
[1760211266257,0.72267682,111180.0,111170.0,0.13]
[1760211266569,0.72267682,111180.0,111170.0,0.14375]
[1760211266570,1.3232993,111180.0,111170.0,0.14375]
[1760211266759,0.6016993,111180.0,111170.0,0.14375]
[1760211266959,0.81152172,111180.0,111170.0,0.14375]
[1760211267370,1.3232993,111180.0,111170.0,0.14375]
[1760211267867,1.3465943,111180.0,111170.0,0.14375]
[1760211268164,0.83481672,111180.0,111170.0,0.14375]
[1760211268365,1.3465943,111180.0,111170.0,0.14375]
[1760211269261,1.3475943,111180.0,111170.0,0.14375]
[1760211269465,1.3485943,111180.0,111170.0,0.14375]
[1760211270363,1.3485943,111180.0,111170.0,0.13]
[1760211270562,0.0898611,111160.0,111150.0,0.22]
[1760211270862,1.34662954,111160.0,111150.0,0.26]
[1760211271360,1.34662954,111160.0,111130.0,0.29375]
[1760211271361,0.0898773,111140.0,111130.0,0.03375]
[1760211271568,1.34656892,111140.0,111130.0,0.26375]
[1760211271762,1.34664574,111140.0,111130.0,0.26375]
[1760211272166,0.83486816,111140.0,111130.0,0.26375]
[1760211272362,1.34664574,111140.0,111130.0,0.26375]
[1760211273163,1.34664574,111140.0,111130.0,0.26475]
[1760211273360,0.83486816,111140.0,111130.0,0.26475]
[1760211273565,1.40855547,111140.0,111130.0,0.26375]
[1760211274766,1.80855497,111140.0,111130.0,0.12375]
[1760211275468,0.83586766,111140.0,111130.0,0.12375]
[1760211275662,1.40955497,111140.0,111130.0,0.12375]
[1760211276365,1.81055497,111140.0,111130.0,0.11]
[1760211276566,1.41055497,111140.0,111130.0,0.12375]
[1760211276766,0.089885,111130.0,111120.0,0.01375]
[1760211276968,0.95780135,111130.0,111120.0,0.24375]
[1760211277262,0.47399904,111130.0,111120.0,0.24375]
[1760211277462,1.04768635,111130.0,111120.0,0.24375]
[1760211278568,1.04868635,111130.0,111120.0,0.24375]
[1760211278962,1.057237,111130.0,111120.0,0.24375]
[1760211279165,1.457237,111130.0,111120.0,0.24375]
[1760211279665,1.04868635,111130.0,111120.0,0.24375]
[1760211280267,0.95880135,111130.0,111120.0,0.26597]
[1760211280658,1.04868665,111130.0,111120.0,0.24375]
[1760211281362,0.95880135,111130.0,111120.0,0.26597]
[1760211281565,0.3608,111130.0,111120.0,0.66597]
[1760211282363,0.3608,111130.0,111120.0,0.26597]
[1760211282671,1.02537261,111130.0,111120.0,0.24375]
[1760211283365,0.3608,111130.0,111120.0,0.66613]
[1760211283570,0.93448731,111130.0,111120.0,0.66613]
[1760211283771,0.93448731,111130.0,111120.0,0.66713]
[1760211284268,0.3608,111130.0,111120.0,0.66713]
[1760211284769,0.3618,111130.0,111120.0,0.66713]
[1760211284966,0.93548731,111130.0,111120.0,0.66713]
[1760211285166,0.93548731,111130.0,111120.0,0.66613]
[1760211285366,1.02537261,111130.0,111120.0,0.66613]
[1760211285565,1.02437261,111130.0,111120.0,0.66613]
[1760211287173,0.4506853,111130.0,111120.0,0.66613]
[1760211287470,0.93448731,111130.0,111120.0,0.66613]
[1760211287670,1.02437261,111130.0,111120.0,0.66613]
[1760211288365,0.4506853,111130.0,111120.0,0.66613]
[1760211288566,1.02437261,111130.0,111120.0,0.66613]
[1760211289169,1.02437261,111130.0,111120.0,0.64375]
[1760211289371,1.02437261,111130.0,111120.0,0.66613]
[1760211289666,0.3608,111130.0,111120.0,0.66613]
[1760211290670,0.3608,111130.0,111120.0,0.26613]
[1760211291170,1.02437261,111130.0,111120.0,0.66613]
[1760211292667,0.3608,111130.0,111120.0,0.66613]
[1760211292869,0.4506853,111130.0,111120.0,0.66613]
[1760211293472,0.3608,111130.0,111120.0,0.66613]
[1760211293968,1.02437261,111130.0,111120.0,0.26613]
[1760211294673,1.02437261,111130.0,111120.0,0.66613]
[1760211294674,0.4506853,111130.0,111120.0,0.66613]
[1760211295874,1.02437261,111130.0,111120.0,0.26613]
[1760211297171,0.4506853,111130.0,111120.0,0.26613]
[1760211297372,1.02437261,111130.0,111120.0,0.26613]
[1760211298073,0.4506853,111130.0,111120.0,0.66613]
[1760211298276,0.3608,111130.0,111120.0,0.66613]
[1760211298479,0.36087682,111140.0,111130.0,0.1249053]
[1760211298771,0.36087682,111140.0,111130.0,0.28502]
[1760211298978,0.45075402,111140.0,111130.0,0.28502]
[1760211300474,1.44749348,111140.0,111130.0,0.26264]
[1760211300879,0.0898934,111120.0,111110.0,0.0438432]
[1760211301181,1.40823286,111120.0,111110.0,0.2338432]
[1760211301378,1.80830968,111120.0,111110.0,0.2338432]
[1760211301971,1.80830968,111120.0,111110.0,0.2348432]
[1760211302777,1.40830968,111120.0,111110.0,0.2348432]
[1760211302978,1.40830968,111120.0,111110.0,0.2572232]
[1760211302979,0.74472897,111120.0,111110.0,0.2572232]
[1760211303180,0.72167682,111120.0,111110.0,0.6572232]
[1760211303375,0.72167682,111120.0,111110.0,0.7471247]
[1760211303576,0.72167682,111120.0,111110.0,0.7461247]
[1760211303871,7.682e-05,111120.0,111110.0,0.6562232]
[1760211304678,7.682e-05,111120.0,111110.0,0.6572232]
[1760211304882,7.682e-05,111120.0,111110.0,0.7471247]
[1760211305079,0.3608,111140.0,111130.0,0.03502]
[1760211305280,1.02436041,111150.0,111140.0,0.03502]
[1760211305481,1.38516041,111150.0,111140.0,0.29502]
[1760211305983,1.38516041,111150.0,111140.0,0.27264]
[1760211306284,1.38516041,111150.0,111140.0,0.29502]
[1760211306882,1.38516041,111150.0,111140.0,0.27264]
[1760211307084,1.38516041,111150.0,111140.0,0.29502]
[1760211307677,1.38616041,111150.0,111140.0,0.27264]
[1760211307989,0.8124731,111150.0,111140.0,0.27264]
[1760211308286,1.38616041,111150.0,111140.0,0.27264]
[1760211309189,1.38616041,111150.0,111140.0,0.29502]
[1760211309485,1.38616041,111150.0,111140.0,0.27264]
[1760211309682,1.38616041,111150.0,111140.0,0.29502]
[1760211309880,1.38615641,111150.0,111140.0,0.29502]
[1760211310388,0.7226,111150.0,111140.0,0.69502]
[1760211310785,0.8124691,111150.0,111140.0,0.69502]
[1760211310987,1.38615641,111150.0,111140.0,0.69502]
[1760211312688,0.8124691,111150.0,111140.0,0.69502]
[1760211313088,1.02535641,111150.0,111140.0,0.69502]
[1760211313990,0.4516691,111150.0,111140.0,0.69502]
[1760211314383,0.3618,111150.0,111140.0,0.69502]
[1760211315190,0.3618,111150.0,111140.0,1.35858451]
[1760211315777,0.001,111150.0,111140.0,1.71938451]
[1760211316088,0.0908691,111150.0,111140.0,0.69502]
[1760211316291,0.001,111150.0,111140.0,0.7848972]
[1760211317392,0.001,111150.0,111140.0,0.3848972]
[1760211317689,0.001,111150.0,111140.0,0.7456972]
[1760211317890,0.0908691,111150.0,111140.0,0.3848972]
[1760211318292,0.4516691,111150.0,111140.0,0.29502]
[1760211318894,0.3618,111150.0,111140.0,0.3848972]
[1760211319192,0.001,111150.0,111140.0,0.3848972]
[1760211319393,0.001,111150.0,111140.0,0.7848972]
[1760211319597,0.4506648,111160.0,111150.0,0.01303]
[1760211319795,0.4506648,111160.0,111150.0,0.26473]
[1760211320093,0.4506571,111170.0,111160.0,0.03473]
[1760211320294,0.089853,111170.0,111160.0,0.29473]
[1760211320595,0.450653,111170.0,111160.0,0.29473]
[1760211321395,1.02434031,111170.0,111160.0,0.29473]
[1760211321589,1.02534031,111170.0,111160.0,0.29473]
[1760211321788,0.451653,111170.0,111160.0,0.29473]
[1760211322595,1.02534031,111170.0,111160.0,0.29473]
[1760211322995,1.02634031,111170.0,111160.0,0.29473]
[1760211323296,0.452653,111170.0,111160.0,0.29473]
[1760211324098,0.450653,111170.0,111160.0,0.29473]
[1760211325596,1.02434031,111170.0,111160.0,0.29473]
[1760211326195,0.450653,111170.0,111160.0,0.29473]
[1760211326496,0.73528,111180.0,111160.0,0.69473]
[1760211326700,0.8251249,111180.0,111170.0,0.03473]
[1760211326897,0.8251249,111180.0,111170.0,0.29473]
[1760211327595,0.37448,111180.0,111170.0,1.35827031]
[1760211327897,0.3608,111190.0,111180.0,0.1245749]
[1760211328193,0.3608,111200.0,111190.0,0.01303]
[1760211328397,0.3608,111200.0,111190.0,0.25473]
[1760211328895,0.4506287,111200.0,111190.0,0.25473]
[1760211329693,0.3608,111200.0,111190.0,0.25473]
[1760211329896,0.3618,111200.0,111190.0,0.25473]
[1760211330092,0.4516287,111200.0,111190.0,0.25473]
[1760211330496,0.3618,111200.0,111190.0,0.25473]
[1760211330693,0.3628,111200.0,111190.0,0.25473]
[1760211330894,0.002,111200.0,111190.0,1.67905411]
[1760211332300,0.002,111200.0,111190.0,1.1053668]
[1760211332599,0.4506131,111220.0,111210.0,0.03473]
[1760211332804,1.38510041,111220.0,111210.0,0.25473]
[1760211333497,1.38510041,111220.0,111210.0,0.23303]
[1760211333698,1.38510041,111220.0,111210.0,0.25473]
[1760211333899,1.38510041,111220.0,111210.0,0.23303]
[1760211334200,1.38510041,111220.0,111210.0,0.25473]
[1760211334398,0.8114131,111220.0,111210.0,0.25473]
[1760211334598,1.38510041,111220.0,111210.0,0.25473]
[1760211335504,0.8114131,111220.0,111210.0,0.25473]
[1760211337104,0.8114131,111220.0,111210.0,0.25696392]
[1760211337605,0.7216,111220.0,111210.0,0.25696392]
[1760211337807,0.7216,111220.0,111210.0,0.34678452]
[1760211338103,0.4506046,111230.0,111220.0,0.01303]
[1760211338300,0.3608,111230.0,111220.0,0.3745425]
[1760211338497,0.3608,111230.0,111220.0,0.28473]
[1760211338706,0.3608,111230.0,111220.0,0.3745425]
[1760211338905,0.4505972,111240.0,111230.0,0.03473]
[1760211339106,0.8113972,111240.0,111230.0,0.25696392]
[1760211339704,1.32338936,111240.0,111230.0,0.23526392]
[1760211341304,1.72338936,111240.0,111230.0,0.23526392]
[1760211341904,1.2113972,111240.0,111230.0,0.25834392]
[1760211342212,1.79368231,111240.0,111230.0,0.23526392]
[1760211342509,1.39368231,111240.0,111230.0,0.23526392]
[1760211342909,0.88169015,111240.0,111230.0,0.23526392]
[1760211343112,1.39368231,111240.0,111230.0,0.23526392]
[1760211343815,0.88269015,111240.0,111230.0,0.23526392]
[1760211344005,1.39468231,111240.0,111230.0,0.25834392]